[Event "Early-Titled-Tuesday-Blitz-September-26-2023"]
[Site "Chess.com"]
[Date "2023.09.26"]
[Round "10"]
[White "remi04"]
[Black "wannabe2700"]
[Result "1-0"]
[WhiteElo "2847"]
[BlackElo "2674"]
[TimeControl "180+1"]
[EndTime "9:57:15 PDT"]
[Termination "remi04 won by resignation"]

1. c4 {[%clk 0:03:00.9]} 1... f5 {[%clk 0:02:59.6]} 2. d4 {[%clk 0:03:00.2]}
2... Nf6 {[%clk 0:03:00.1]} 3. Nc3 {[%clk 0:03:00.9]} 3... g6 {[%clk 0:03:00.7]}
4. g3 {[%clk 0:03:01.4]} 4... Bg7 {[%clk 0:03:01.2]} 5. Bg2 {[%clk 0:03:02]}
5... O-O {[%clk 0:03:01.9]} 6. Nf3 {[%clk 0:03:00.9]} 6... d6 {[%clk 0:03:02.5]}
7. O-O {[%clk 0:03:01]} 7... c6 {[%clk 0:03:03.2]} 8. Re1 {[%clk 0:02:54.5]}
8... Ne4 {[%clk 0:03:02]} 9. Qc2 {[%clk 0:02:52.9]} 9... Na6 {[%clk 0:02:56.9]}
10. a3 {[%clk 0:02:33.5]} 10... Nxc3 {[%clk 0:02:49.3]} 11. bxc3 {[%clk
0:02:33.2]} 11... Qe8 {[%clk 0:02:49.4]} 12. e4 {[%clk 0:02:26.2]} 12... e5
{[%clk 0:02:48.7]} 13. dxe5 {[%clk 0:02:08.1]} 13... dxe5 {[%clk 0:02:46.5]} 14.
a4 {[%clk 0:02:08.5]} 14... fxe4 {[%clk 0:02:26.7]} 15. Ng5 {[%clk 0:02:06.3]}
15... e3 {[%clk 0:02:16.9]} 16. Bxe3 {[%clk 0:02:03.1]} 16... Bf5 {[%clk
0:02:15.7]} 17. Qb2 {[%clk 0:01:59.8]} 17... Qe7 {[%clk 0:02:14.9]} 18. Ne4
{[%clk 0:01:56.8]} 18... Bxe4 {[%clk 0:02:12]} 19. Bxe4 {[%clk 0:01:56.5]} 19...
Nc5 {[%clk 0:02:12.7]} 20. Qa3 {[%clk 0:01:48.2]} 20... b6 {[%clk 0:02:12.9]}
21. Bxc6 {[%clk 0:01:46.4]} 21... Rac8 {[%clk 0:02:13]} 22. Bd5+ {[%clk
0:01:46.5]} 22... Kh8 {[%clk 0:02:13.3]} 23. a5 {[%clk 0:01:44.4]} 23... Qf6
{[%clk 0:02:12.4]} 24. Rab1 {[%clk 0:01:31.1]} 24... e4 {[%clk 0:02:08.3]} 25.
axb6 {[%clk 0:01:24.5]} 25... axb6 {[%clk 0:02:08]} 26. Bd4 {[%clk 0:01:18.6]}
26... Qf3 {[%clk 0:02:07.3]} 27. Be3 {[%clk 0:01:04.1]} 27... Nd3 {[%clk
0:01:56]} 28. Rf1 {[%clk 0:01:01.4]} 28... Ne5 {[%clk 0:01:56.4]} 29. Qe7 {[%clk
0:00:49.7]} 29... Qg4 {[%clk 0:01:52.6]} 30. Kg2 {[%clk 0:00:29.2]} 30... Qf3+
{[%clk 0:01:48.9]} 31. Kg1 {[%clk 0:00:29.6]} 31... Rce8 {[%clk 0:01:45.6]} 32.
Qh4 {[%clk 0:00:24.9]} 32... Ng4 {[%clk 0:01:38.4]} 33. Bd4 {[%clk 0:00:20.7]}
33... Bxd4 {[%clk 0:01:32.9]} 34. cxd4 {[%clk 0:00:21.6]} 34... Rf5 {[%clk
0:01:31.4]} 35. h3 {[%clk 0:00:16.4]} 35... Nf6 {[%clk 0:01:30.3]} 36. Bc6
{[%clk 0:00:12.9]} 36... Rd8 {[%clk 0:01:17.6]} 37. Rxb6 {[%clk 0:00:12.5]}
37... g5 {[%clk 0:01:16.3]} 38. Qh6 {[%clk 0:00:11.3]} 38... Qe2 {[%clk
0:00:34.3]} 39. Rb7 {[%clk 0:00:10.4]} 39... Rg8 {[%clk 0:00:32.5]} 40. Rf7
{[%clk 0:00:06.9]} 40... Rg6 {[%clk 0:00:23.8]} 41. Qf8+ {[%clk 0:00:06.1]}
41... Rg8 {[%clk 0:00:24.3]} 42. Qh6 {[%clk 0:00:06.2]} 42... Rg6 {[%clk
0:00:24.7]} 43. Rxh7+ {[%clk 0:00:06.3]} 43... Nxh7 {[%clk 0:00:23.8]} 44. Qxg6
{[%clk 0:00:06.9]} 44... Rf6 {[%clk 0:00:22.3]} 45. Qe8+ {[%clk 0:00:06.8]}
45... Kg7 {[%clk 0:00:22.7]} 46. Bxe4 {[%clk 0:00:06.5]} 46... Nf8 {[%clk
0:00:20.9]} 47. Qe7+ {[%clk 0:00:06.4]} 47... Rf7 {[%clk 0:00:21.1]} 48. Qxg5+
{[%clk 0:00:06.8]} 48... Kh8 {[%clk 0:00:21.7]} 49. Qh6+ {[%clk 0:00:06.8]}
49... Nh7 {[%clk 0:00:20.7]} 50. Bd5 {[%clk 0:00:07]} 50... Rf6 {[%clk
0:00:20.6]} 51. Qe3 {[%clk 0:00:05.6]} 51... Qc2 {[%clk 0:00:19.6]} 52. Rc1
{[%clk 0:00:05]} 52... Qf5 {[%clk 0:00:19.3]} 53. Re1 {[%clk 0:00:04.2]} 53...
Qxh3 {[%clk 0:00:19.3]} 54. Qe8+ {[%clk 0:00:04]} 54... Kg7 {[%clk 0:00:19.9]}
55. Re7+ {[%clk 0:00:03.4]} 55... Kh6 {[%clk 0:00:20]} 56. Qh8 {[%clk
0:00:03.6]} 56... Kg6 {[%clk 0:00:17.9]} 57. Qg7+ {[%clk 0:00:03.8]} 57... Kf5
{[%clk 0:00:18.3]} 58. Qxh7+ {[%clk 0:00:04.3]} 58... Qxh7 {[%clk 0:00:18.1]}
59. Rxh7 {[%clk 0:00:05.2]} 59... Ra6 {[%clk 0:00:18]} 60. Rh5+ {[%clk
0:00:05.4]} 60... Kg4 {[%clk 0:00:18.3]} 61. Rh4+ {[%clk 0:00:05.4]} 61... Kg5
{[%clk 0:00:18.8]} 62. Rf4 {[%clk 0:00:06.1]} 62... Ra2 {[%clk 0:00:18.4]} 63.
Kg2 {[%clk 0:00:06.4]} 63... Rd2 {[%clk 0:00:18.7]} 64. c5 {[%clk 0:00:06.9]}
64... Rc2 {[%clk 0:00:19]} 65. c6 {[%clk 0:00:07.5]} 65... Rc3 {[%clk
0:00:19.3]} 66. Rf7 {[%clk 0:00:07.7]} 66... Rd3 {[%clk 0:00:18.9]} 67. c7
{[%clk 0:00:08]} 67... Rc3 {[%clk 0:00:19.3]} 68. Be6 {[%clk 0:00:08.4]} 68...
Rc2 {[%clk 0:00:18.5]} 69. c8=Q {[%clk 0:00:07.2]} 69... Rxc8 {[%clk 0:00:18.7]}
70. Bxc8 {[%clk 0:00:08.1]} 70... Kg6 {[%clk 0:00:19.3]} 71. Rf4 {[%clk
0:00:07.5]} 71... Kg5 {[%clk 0:00:19.7]} 72. d5 {[%clk 0:00:08.4]} 1-0

[Event "Early-Titled-Tuesday-Blitz-September-26-2023"]
[Site "Chess.com"]
[Date "2023.09.26"]
[Round "10"]
[White "Botvinnak"]
[Black "gueraumasague"]
[Result "1/2-1/2"]
[WhiteElo "2328"]
[BlackElo "2458"]
[TimeControl "180+1"]
[EndTime "9:57:19 PDT"]
[Termination "Game drawn by repetition"]

1. Nf3 {[%clk 0:02:53.3]} 1... g6 {[%clk 0:03:00.9]} 2. g3 {[%clk 0:02:52.8]}
2... d6 {[%clk 0:02:55.8]} 3. Bg2 {[%clk 0:02:53]} 3... Nf6 {[%clk 0:02:56.3]}
4. O-O {[%clk 0:02:53.3]} 4... Bg7 {[%clk 0:02:43.9]} 5. d4 {[%clk 0:02:53.5]}
5... Bf5 {[%clk 0:02:44.1]} 6. b3 {[%clk 0:02:53.7]} 6... O-O {[%clk 0:02:44]}
7. Bb2 {[%clk 0:02:54.3]} 7... Nc6 {[%clk 0:02:40.9]} 8. Nbd2 {[%clk 0:02:53.8]}
8... Ne4 {[%clk 0:02:41.2]} 9. Nc4 {[%clk 0:02:53.4]} 9... a5 {[%clk 0:02:38.6]}
10. Ne3 {[%clk 0:02:52.7]} 10... Bd7 {[%clk 0:02:36.9]} 11. a3 {[%clk
0:02:52.9]} 11... f5 {[%clk 0:02:31.7]} 12. c4 {[%clk 0:02:49.3]} 12... h6
{[%clk 0:02:29.4]} 13. Rb1 {[%clk 0:02:47.4]} 13... e6 {[%clk 0:01:48.6]} 14. d5
{[%clk 0:02:46.7]} 14... Ne5 {[%clk 0:01:32.3]} 15. dxe6 {[%clk 0:02:46]} 15...
Bxe6 {[%clk 0:01:31.6]} 16. Nd4 {[%clk 0:02:46.5]} 16... Bd7 {[%clk 0:01:24.6]}
17. Nd5 {[%clk 0:02:46.7]} 17... c6 {[%clk 0:01:22.4]} 18. Nf4 {[%clk
0:02:45.4]} 18... Qe8 {[%clk 0:01:21.3]} 19. Nd3 {[%clk 0:02:43.6]} 19... Qe7
{[%clk 0:01:09.9]} 20. Qc2 {[%clk 0:02:41.9]} 20... Kh7 {[%clk 0:01:07.1]} 21.
Nf4 {[%clk 0:02:37.8]} 21... Ng4 {[%clk 0:01:00.9]} 22. e3 {[%clk 0:02:25.3]}
22... Rae8 {[%clk 0:00:59.2]} 23. Rbd1 {[%clk 0:02:25]} 23... Bc8 {[%clk
0:00:48.9]} 24. Rde1 {[%clk 0:02:24.5]} 24... Qf7 {[%clk 0:00:44.5]} 25. Nf3
{[%clk 0:02:24.1]} 25... Ne5 {[%clk 0:00:40.6]} 26. Rd1 {[%clk 0:02:22.7]} 26...
g5 {[%clk 0:00:37.8]} 27. Nd3 {[%clk 0:02:20.5]} 27... Ng4 {[%clk 0:00:34.5]}
28. Bxg7 {[%clk 0:02:16.6]} 28... Qxg7 {[%clk 0:00:35.4]} 29. Rde1 {[%clk
0:02:11.9]} 29... Qc3 {[%clk 0:00:29.5]} 30. Qxc3 {[%clk 0:02:10.9]} 30... Nxc3
{[%clk 0:00:30.4]} 31. Nd4 {[%clk 0:02:10.1]} 31... Nf6 {[%clk 0:00:27.5]} 32.
Rc1 {[%clk 0:02:06.6]} 32... Nce4 {[%clk 0:00:26.3]} 33. h3 {[%clk 0:02:04.6]}
33... Kg6 {[%clk 0:00:23]} 34. Rfd1 {[%clk 0:02:04.8]} 34... Re7 {[%clk
0:00:19.3]} 35. Ne2 {[%clk 0:02:04.8]} 35... Rfe8 {[%clk 0:00:18.2]} 36. Nc3
{[%clk 0:02:03.8]} 36... Rd8 {[%clk 0:00:10.4]} 37. Na4 {[%clk 0:02:02.7]} 37...
Be6 {[%clk 0:00:08.9]} 38. Ne1 {[%clk 0:01:56.1]} 38... Bg8 {[%clk 0:00:07.8]}
39. Nf3 {[%clk 0:01:55.8]} 39... Red7 {[%clk 0:00:07]} 40. Nd4 {[%clk
0:01:55.9]} 40... d5 {[%clk 0:00:06.9]} 41. cxd5 {[%clk 0:01:55.9]} 41... Bxd5
{[%clk 0:00:07.1]} 42. b4 {[%clk 0:01:53.2]} 42... axb4 {[%clk 0:00:05.6]} 43.
axb4 {[%clk 0:01:53.7]} 43... Re7 {[%clk 0:00:06.2]} 44. Nc5 {[%clk 0:01:52.6]}
44... Rde8 {[%clk 0:00:05.9]} 45. b5 {[%clk 0:01:50.9]} 45... cxb5 {[%clk
0:00:06]} 46. Nxb5 {[%clk 0:01:51]} 46... Bc6 {[%clk 0:00:06.3]} 47. Nd4 {[%clk
0:01:50.1]} 47... Bd5 {[%clk 0:00:06.6]} 48. Rc2 {[%clk 0:01:44.4]} 48... Nxc5
{[%clk 0:00:05.7]} 49. Rxc5 {[%clk 0:01:44.2]} 49... Bxg2 {[%clk 0:00:06.6]} 50.
Kxg2 {[%clk 0:01:44.8]} 50... Re5 {[%clk 0:00:07]} 51. Rdc1 {[%clk 0:01:44.4]}
51... R8e7 {[%clk 0:00:07.1]} 52. R1c4 {[%clk 0:01:43]} 52... b6 {[%clk
0:00:06.6]} 53. Rc6 {[%clk 0:01:42]} 53... Rb7 {[%clk 0:00:06.3]} 54. Rb4 {[%clk
0:01:41.7]} 54... b5 {[%clk 0:00:06.1]} 55. Ra6 {[%clk 0:01:40.5]} 55... Kf7
{[%clk 0:00:06.5]} 56. Ra5 {[%clk 0:01:38.3]} 56... h5 {[%clk 0:00:05]} 57.
Rbxb5 {[%clk 0:01:36.8]} 57... Rbxb5 {[%clk 0:00:05.4]} 58. Nxb5 {[%clk
0:01:37.1]} 58... Ne4 {[%clk 0:00:04.9]} 59. Ra7+ {[%clk 0:01:34.9]} 59... Ke6
{[%clk 0:00:05]} 60. Nd4+ {[%clk 0:01:34.9]} 60... Kf6 {[%clk 0:00:05.3]} 61.
Ra6+ {[%clk 0:01:34.9]} 61... Kg7 {[%clk 0:00:05.4]} 62. Ra7+ {[%clk 0:01:32.9]}
62... Kg6 {[%clk 0:00:05.2]} 63. Ra6+ {[%clk 0:01:32.7]} 63... Nf6 {[%clk
0:00:05.3]} 64. Nc6 {[%clk 0:01:32.3]} 64... Re8 {[%clk 0:00:04.9]} 65. Ra7
{[%clk 0:01:32.1]} 65... Re6 {[%clk 0:00:04.6]} 66. Ne7+ {[%clk 0:01:32.1]}
66... Kf7 {[%clk 0:00:04.1]} 67. Nxf5+ {[%clk 0:01:31.8]} 67... Kf8 {[%clk
0:00:04.8]} 68. Nd4 {[%clk 0:01:31.5]} 68... Rb6 {[%clk 0:00:05.3]} 69. Nf5
{[%clk 0:01:31.2]} 69... Rb5 {[%clk 0:00:05.3]} 70. Nd4 {[%clk 0:01:30.7]} 70...
Rd5 {[%clk 0:00:05.4]} 71. Ra6 {[%clk 0:01:30.9]} 71... Kg7 {[%clk 0:00:05.5]}
72. Re6 {[%clk 0:01:29.9]} 72... Kg6 {[%clk 0:00:05.8]} 73. Nc6 {[%clk
0:01:29.1]} 73... g4 {[%clk 0:00:06.2]} 74. Ne5+ {[%clk 0:01:28.4]} 74... Kf5
{[%clk 0:00:06.7]} 75. Re7 {[%clk 0:01:26.6]} 75... Rxe5 {[%clk 0:00:07]} 76.
hxg4+ {[%clk 0:01:26.7]} 76... hxg4 {[%clk 0:00:07.3]} 77. Rg7 {[%clk
0:01:26.7]} 77... Ra5 {[%clk 0:00:06.4]} 78. Rf7 {[%clk 0:01:25.8]} 78... Ra2
{[%clk 0:00:06.3]} 79. Rf8 {[%clk 0:01:25.6]} 79... Ke6 {[%clk 0:00:06.6]} 80.
Rb8 {[%clk 0:01:24]} 80... Ne4 {[%clk 0:00:06.4]} 81. Re8+ {[%clk 0:01:24.2]}
81... Kf5 {[%clk 0:00:05.1]} 82. Rf8+ {[%clk 0:01:24.4]} 82... Nf6 {[%clk
0:00:05.6]} 83. Rf7 {[%clk 0:01:24.1]} 83... Kg6 {[%clk 0:00:06]} 84. Re7 {[%clk
0:01:24]} 84... Rb2 {[%clk 0:00:03.6]} 85. Kg1 {[%clk 0:01:23.5]} 85... Rd2
{[%clk 0:00:03.6]} 86. Kg2 {[%clk 0:01:23.8]} 86... Rb2 {[%clk 0:00:03.9]} 87.
Kg1 {[%clk 0:01:24.4]} 87... Rb4 {[%clk 0:00:04.2]} 88. Kg2 {[%clk 0:01:24.5]}
88... Kf5 {[%clk 0:00:04.8]} 89. Re8 {[%clk 0:01:24]} 89... Rc4 {[%clk 0:00:04]}
90. Re7 {[%clk 0:01:24.3]} 90... Ne4 {[%clk 0:00:03.4]} 91. Rf7+ {[%clk
0:01:24.3]} 91... Ke6 {[%clk 0:00:03.6]} 92. Rf4 {[%clk 0:01:24.1]} 92... Nd6
{[%clk 0:00:01.3]} 93. Rxc4 {[%clk 0:01:23.2]} 93... Nxc4 {[%clk 0:00:02.2]} 94.
f3 {[%clk 0:01:24.1]} 94... Nxe3+ {[%clk 0:00:02.1]} 95. Kf2 {[%clk 0:01:24.9]}
95... Nf5 {[%clk 0:00:02.5]} 96. fxg4 {[%clk 0:01:25.2]} 96... Nh6 {[%clk
0:00:03.3]} 97. Kf3 {[%clk 0:01:26]} 97... Kf6 {[%clk 0:00:02.9]} 98. Kf4 {[%clk
0:01:26.8]} 98... Kg6 {[%clk 0:00:03.6]} 99. g5 {[%clk 0:01:27.1]} 99... Nf7
{[%clk 0:00:04.4]} 100. g4 {[%clk 0:01:27.9]} 100... Nxg5 {[%clk 0:00:05]} 101.
Kg3 {[%clk 0:01:28.6]} 101... Nh7 {[%clk 0:00:05.7]} 102. Kf4 {[%clk 0:01:29.4]}
102... Ng5 {[%clk 0:00:06.2]} 103. Kg3 {[%clk 0:01:30.2]} 103... Nf7 {[%clk
0:00:07]} 104. Kf4 {[%clk 0:01:30.7]} 104... Nh6 {[%clk 0:00:07.9]} 105. Kg3
{[%clk 0:01:31.3]} 105... Nf7 {[%clk 0:00:08.8]} 106. Kf4 {[%clk 0:01:32]}
106... Ng5 {[%clk 0:00:09.7]} 1/2-1/2

[Event "Early-Titled-Tuesday-Blitz-September-26-2023"]
[Site "Chess.com"]
[Date "2023.09.26"]
[Round "10"]
[White "Nasrin_Babayeva"]
[Black "ChessArchitect64"]
[Result "0-1"]
[WhiteElo "1874"]
[BlackElo "2238"]
[TimeControl "180+1"]
[EndTime "9:57:24 PDT"]
[Termination "ChessArchitect64 won by checkmate"]

1. e4 {[%clk 0:03:00.9]} 1... e6 {[%clk 0:02:52.3]} 2. Qe2 {[%clk 0:02:58.2]}
2... c5 {[%clk 0:02:48.8]} 3. f4 {[%clk 0:02:57.3]} 3... Nc6 {[%clk 0:02:37.7]}
4. d3 {[%clk 0:02:57.4]} 4... g6 {[%clk 0:02:24.5]} 5. c3 {[%clk 0:02:57]} 5...
Bg7 {[%clk 0:02:10.1]} 6. Be3 {[%clk 0:02:57]} 6... d6 {[%clk 0:02:01.4]} 7. Nd2
{[%clk 0:02:56.5]} 7... Nge7 {[%clk 0:01:57.3]} 8. Ngf3 {[%clk 0:02:55.2]} 8...
O-O {[%clk 0:01:44.5]} 9. Qf2 {[%clk 0:02:55.1]} 9... b6 {[%clk 0:01:41.1]} 10.
g3 {[%clk 0:02:53.1]} 10... d5 {[%clk 0:01:39.3]} 11. Bg2 {[%clk 0:02:53.7]}
11... Bb7 {[%clk 0:01:38.4]} 12. O-O {[%clk 0:02:50.9]} 12... Qd7 {[%clk
0:01:36.2]} 13. e5 {[%clk 0:02:39.6]} 13... Nf5 {[%clk 0:01:36]} 14. d4 {[%clk
0:02:39.9]} 14... cxd4 {[%clk 0:01:32.3]} 15. Bxd4 {[%clk 0:02:34.2]} 15... h5
{[%clk 0:01:30]} 16. h3 {[%clk 0:02:31.7]} 16... Ncxd4 {[%clk 0:01:27.2]} 17.
cxd4 {[%clk 0:02:29.9]} 17... Rfc8 {[%clk 0:01:26]} 18. g4 {[%clk 0:02:28.4]}
18... hxg4 {[%clk 0:01:23.4]} 19. hxg4 {[%clk 0:02:29.3]} 19... Ne7 {[%clk
0:01:23.9]} 20. Qh4 {[%clk 0:02:22.8]} 20... Rc2 {[%clk 0:01:14.7]} 21. Rab1
{[%clk 0:01:47.4]} 21... Ba6 {[%clk 0:01:12.6]} 22. Rfc1 {[%clk 0:01:45.3]}
22... Rac8 {[%clk 0:01:12.6]} 23. Rxc2 {[%clk 0:01:37.4]} 23... Rxc2 {[%clk
0:01:13.5]} 24. Nf1 {[%clk 0:01:29.6]} 24... Qb5 {[%clk 0:00:48.2]} 25. Qxe7
{[%clk 0:01:08.5]} 25... Qe2 {[%clk 0:00:44.9]} 26. Qd8+ {[%clk 0:01:02.8]}
26... Bf8 {[%clk 0:00:44.9]} 27. Ne1 {[%clk 0:00:40.7]} 27... Rxb2 {[%clk
0:00:35.3]} 28. Rxb2 {[%clk 0:00:35.9]} 28... Qxb2 {[%clk 0:00:36.2]} 29. Nf3
{[%clk 0:00:27.4]} 29... Be2 {[%clk 0:00:35.7]} 30. Qc7 {[%clk 0:00:16.6]} 30...
Bxf3 {[%clk 0:00:34.4]} 31. Bxf3 {[%clk 0:00:17.5]} 31... Qxd4+ {[%clk
0:00:34.4]} 32. Kg2 {[%clk 0:00:17.8]} 32... Qxf4 {[%clk 0:00:34.3]} 33. Qb7
{[%clk 0:00:16.8]} 33... Qxe5 {[%clk 0:00:32.6]} 34. Qxa7 {[%clk 0:00:17.3]}
34... Qb2+ {[%clk 0:00:32.2]} 35. Kh3 {[%clk 0:00:16.2]} 35... Bd6 {[%clk
0:00:28.1]} 36. Qa8+ {[%clk 0:00:14.4]} 36... Kg7 {[%clk 0:00:27.1]} 37. Qa4
{[%clk 0:00:14.5]} 37... Be5 {[%clk 0:00:20.6]} 38. Qb3 {[%clk 0:00:13.1]} 38...
Qf2 {[%clk 0:00:16.2]} 39. Qe3 {[%clk 0:00:10.7]} 39... Qxf1+ {[%clk 0:00:15.6]}
40. Bg2 {[%clk 0:00:10.1]} 40... Qf4 {[%clk 0:00:13.8]} 41. Qxf4 {[%clk
0:00:10]} 41... Bxf4 {[%clk 0:00:14.7]} 42. a4 {[%clk 0:00:10.1]} 42... g5
{[%clk 0:00:14.3]} 43. Bf3 {[%clk 0:00:10.2]} 43... Kf6 {[%clk 0:00:14.7]} 44.
Kg2 {[%clk 0:00:10.4]} 44... Ke5 {[%clk 0:00:15.2]} 45. Kf1 {[%clk 0:00:11.3]}
45... Kd4 {[%clk 0:00:15.5]} 46. Ke2 {[%clk 0:00:12.2]} 46... e5 {[%clk
0:00:16.2]} 47. Kd1 {[%clk 0:00:11.6]} 47... e4 {[%clk 0:00:17.1]} 48. Be2
{[%clk 0:00:11.3]} 48... Ke3 {[%clk 0:00:16.5]} 49. Kc2 {[%clk 0:00:11.8]} 49...
d4 {[%clk 0:00:16.9]} 50. Bf1 {[%clk 0:00:10.3]} 50... d3+ {[%clk 0:00:17.8]}
51. Kd1 {[%clk 0:00:10.5]} 51... Kf2 {[%clk 0:00:18.2]} 52. Bxd3 {[%clk
0:00:09.7]} 52... exd3 {[%clk 0:00:19.1]} 53. a5 {[%clk 0:00:10.1]} 53... Ke3
{[%clk 0:00:13.9]} 54. a6 {[%clk 0:00:08]} 54... Bb8 {[%clk 0:00:13.3]} 55. a7
{[%clk 0:00:03.8]} 55... Bxa7 {[%clk 0:00:14.2]} 56. Ke1 {[%clk 0:00:03.7]}
56... b5 {[%clk 0:00:13.4]} 57. Kd1 {[%clk 0:00:04.2]} 57... b4 {[%clk
0:00:14.3]} 58. Kc1 {[%clk 0:00:03.9]} 58... Bd4 {[%clk 0:00:14.5]} 59. Kd1
{[%clk 0:00:04.1]} 59... b3 {[%clk 0:00:14]} 60. Kc1 {[%clk 0:00:04.8]} 60...
b2+ {[%clk 0:00:12.2]} 61. Kb1 {[%clk 0:00:05.4]} 61... d2 {[%clk 0:00:12.4]}
62. Ka2 {[%clk 0:00:04.9]} 62... d1=Q {[%clk 0:00:10.4]} 63. Ka3 {[%clk
0:00:03.8]} 63... Qa1+ {[%clk 0:00:10.7]} 64. Kb3 {[%clk 0:00:03.6]} 64... b1=Q+
{[%clk 0:00:11.6]} 65. Kc4 {[%clk 0:00:03.7]} 65... Qc3+ {[%clk 0:00:12.3]} 66.
Kd5 {[%clk 0:00:04.2]} 66... Qc5# {[%clk 0:00:13.1]} 0-1

[Event "Early-Titled-Tuesday-Blitz-September-26-2023"]
[Site "Chess.com"]
[Date "2023.09.26"]
[Round "10"]
[White "campochess"]
[Black "rose107"]
[Result "0-1"]
[WhiteElo "2167"]
[BlackElo "2106"]
[TimeControl "180+1"]
[EndTime "9:57:26 PDT"]
[Termination "rose107 won by resignation"]

1. d4 {[%clk 0:02:59.8]} 1... d5 {[%clk 0:02:58.3]} 2. Bg5 {[%clk 0:02:59.4]}
2... Nf6 {[%clk 0:02:57.5]} 3. Nd2 {[%clk 0:02:57.3]} 3... Bf5 {[%clk
0:02:54.3]} 4. c3 {[%clk 0:02:56.9]} 4... e6 {[%clk 0:02:53.9]} 5. Qb3 {[%clk
0:02:56.5]} 5... Qc8 {[%clk 0:02:52.4]} 6. Ngf3 {[%clk 0:02:55.1]} 6... c5
{[%clk 0:02:51]} 7. Bxf6 {[%clk 0:02:51.6]} 7... gxf6 {[%clk 0:02:50.2]} 8. dxc5
{[%clk 0:02:49.8]} 8... Bxc5 {[%clk 0:02:46.7]} 9. e3 {[%clk 0:02:49.8]} 9...
Nc6 {[%clk 0:02:43.8]} 10. Qa4 {[%clk 0:02:43.3]} 10... O-O {[%clk 0:02:33.8]}
11. Qh4 {[%clk 0:02:42.3]} 11... Be7 {[%clk 0:02:26.9]} 12. Qh6 {[%clk
0:02:38.2]} 12... Bg6 {[%clk 0:02:23]} 13. h4 {[%clk 0:02:36.1]} 13... Rd8
{[%clk 0:02:16.3]} 14. h5 {[%clk 0:02:35.4]} 14... Bf8 {[%clk 0:02:08.4]} 15.
Qf4 {[%clk 0:02:34.3]} 15... Bf5 {[%clk 0:02:01]} 16. g4 {[%clk 0:02:32.8]}
16... Bd6 {[%clk 0:01:56.6]} 17. Qh6 {[%clk 0:02:32.6]} 17... Bc2 {[%clk
0:01:42.5]} 18. Qxf6 {[%clk 0:02:31.7]} 18... Be7 {[%clk 0:01:34.7]} 19. Qf4
{[%clk 0:02:27.5]} 19... Qb8 {[%clk 0:01:23.4]} 20. Qxb8 {[%clk 0:02:13.8]}
20... Raxb8 {[%clk 0:01:19]} 21. Nb3 {[%clk 0:02:13.4]} 21... Bxb3 {[%clk
0:01:16.5]} 22. axb3 {[%clk 0:02:12.5]} 22... e5 {[%clk 0:01:16.7]} 23. Bb5
{[%clk 0:02:05.4]} 23... a6 {[%clk 0:01:10.7]} 24. Be2 {[%clk 0:02:01.4]} 24...
d4 {[%clk 0:01:02.7]} 25. O-O-O {[%clk 0:01:57.5]} 25... dxe3 {[%clk 0:00:57.4]}
26. fxe3 {[%clk 0:01:57.4]} 26... e4 {[%clk 0:00:55.7]} 27. Nd4 {[%clk
0:01:55.3]} 27... Bg5 {[%clk 0:00:53.7]} 28. Nc2 {[%clk 0:01:52.4]} 28... Na5
{[%clk 0:00:51.1]} 29. Bc4 {[%clk 0:01:46.5]} 29... Rxd1+ {[%clk 0:00:40]} 30.
Rxd1 {[%clk 0:01:44.9]} 30... Rc8 {[%clk 0:00:40.3]} 31. Bd5 {[%clk 0:01:43.8]}
31... Kg7 {[%clk 0:00:31.9]} 32. Kb1 {[%clk 0:01:40.4]} 32... Rd8 {[%clk
0:00:28.8]} 33. c4 {[%clk 0:01:19]} 33... Nxb3 {[%clk 0:00:24.3]} 34. Rf1 {[%clk
0:01:18.9]} 34... Nd2+ {[%clk 0:00:22.5]} 35. Ka2 {[%clk 0:01:17.5]} 35... Nxf1
{[%clk 0:00:23.4]} 36. Bxe4 {[%clk 0:01:16.5]} 36... Nxe3 {[%clk 0:00:23.2]} 37.
Nb4 {[%clk 0:01:11.4]} 37... Nxc4 {[%clk 0:00:21.9]} 38. Nd5 {[%clk 0:01:05.6]}
38... Nd2 {[%clk 0:00:17.2]} 39. Bg2 {[%clk 0:01:02.6]} 39... Rd6 {[%clk
0:00:16.6]} 40. b3 {[%clk 0:00:53.4]} 40... b5 {[%clk 0:00:16.5]} 41. Kb2 {[%clk
0:00:53.3]} 41... a5 {[%clk 0:00:15.7]} 42. Kc2 {[%clk 0:00:53.3]} 42... a4
{[%clk 0:00:16]} 43. bxa4 {[%clk 0:00:53.2]} 43... bxa4 {[%clk 0:00:16.9]} 44.
Nc3 {[%clk 0:00:50.5]} 44... a3 {[%clk 0:00:16.9]} 45. Ba8 {[%clk 0:00:37.9]}
45... Ra6 {[%clk 0:00:16.7]} 46. Bd5 {[%clk 0:00:34.4]} 46... Ra5 {[%clk
0:00:13.7]} 47. Ba2 {[%clk 0:00:33.1]} 47... Rc5 {[%clk 0:00:13.2]} 48. Kd3
{[%clk 0:00:31.3]} 48... Nf3 {[%clk 0:00:10.9]} 49. Ne4 {[%clk 0:00:30.2]} 49...
Ne5+ {[%clk 0:00:10]} 50. Kd4 {[%clk 0:00:29.2]} 50... Ra5 {[%clk 0:00:09.1]}
51. Nxg5 {[%clk 0:00:22.5]} 51... Nc6+ {[%clk 0:00:09.3]} 52. Kc4 {[%clk
0:00:20.2]} 52... Rxg5 {[%clk 0:00:10.2]} 53. Kb3 {[%clk 0:00:18.6]} 53... Rxg4
{[%clk 0:00:09.9]} 54. Kxa3 {[%clk 0:00:18.7]} 54... Rh4 {[%clk 0:00:10.4]} 55.
Bd5 {[%clk 0:00:17.4]} 55... Ne5 {[%clk 0:00:09.7]} 56. Kb2 {[%clk 0:00:16.2]}
56... Rxh5 {[%clk 0:00:09.9]} 57. Kc2 {[%clk 0:00:15.7]} 57... Rg5 {[%clk
0:00:10.8]} 58. Kd1 {[%clk 0:00:15]} 58... h5 {[%clk 0:00:11.7]} 59. Ke2 {[%clk
0:00:15]} 59... h4 {[%clk 0:00:12.2]} 60. Kf2 {[%clk 0:00:14.5]} 60... Kf6
{[%clk 0:00:12.7]} 61. Bb7 {[%clk 0:00:14.3]} 61... h3 {[%clk 0:00:13.1]} 62.
Ke3 {[%clk 0:00:14.3]} 62... h2 {[%clk 0:00:13.5]} 63. Kf4 {[%clk 0:00:14.3]}
63... Rg1 {[%clk 0:00:13.3]} 64. Bd5 {[%clk 0:00:11.3]} 64... h1=Q {[%clk
0:00:13.6]} 65. Bxh1 {[%clk 0:00:10.8]} 65... Rxh1 {[%clk 0:00:14.5]} 66. Kg3
{[%clk 0:00:08.2]} 66... Ke6 {[%clk 0:00:15.4]} 67. Kg2 {[%clk 0:00:07.9]} 67...
f5 {[%clk 0:00:16.1]} 68. Kxh1 {[%clk 0:00:07.7]} 68... f4 {[%clk 0:00:16.8]}
69. Kg2 {[%clk 0:00:07.8]} 69... Kf5 {[%clk 0:00:17.7]} 70. Kf2 {[%clk 0:00:08]}
70... Ke4 {[%clk 0:00:18.6]} 71. Ke2 {[%clk 0:00:08.1]} 71... f3+ {[%clk
0:00:19.1]} 72. Kf2 {[%clk 0:00:08.3]} 72... Nd3+ {[%clk 0:00:20]} 73. Kg1
{[%clk 0:00:07]} 73... Ke3 {[%clk 0:00:20.5]} 74. Kf1 {[%clk 0:00:06.9]} 74...
f2 {[%clk 0:00:20.9]} 75. Kg2 {[%clk 0:00:07]} 75... Ke2 {[%clk 0:00:21.6]} 76.
Kg3 {[%clk 0:00:07.2]} 76... f1=Q {[%clk 0:00:22]} 0-1